[Event "January 2 Late 2024"]
[Site "https://www.chess.com"]
[Date "2024.01.02"]
[Round "5"]
[White "Martin Fuentes, Alberto"]
[Black "Lysyj, Igor"]
[Result "1-0"]
[Board "47"]
[TimeControl "180+1"]
[WhiteFideId "2292289"]
[BlackFideId "4150120"]
[WhiteElo "2641"]
[BlackElo "2821"]
[WhiteTeam "ESP"]
[BlackTeam "FID"]
[WhiteClock "0:00:06"]
[BlackClock "0:00:00"]

1. e4 {[%clk 0:03:00]}  e5 {[%clk 0:02:59]} 2. Nf3 {[%clk 0:02:58]}  Nc6 {[%clk 0:02:59]} 3. d4 {[%clk 0:02:59]}  exd4 {[%clk 0:02:59]} 4. Bc4 {[%clk 0:02:59]}  Bc5 {[%clk 0:02:58]} 5. Ng5 {[%clk 0:02:56]}  Nh6 {[%clk 0:02:57]} 6. Nxf7 {[%clk 0:02:56]}  Nxf7 {[%clk 0:02:56]} 7. Bxf7+ {[%clk 0:02:57]}  Kxf7 {[%clk 0:02:56]} 8. Qh5+ {[%clk 0:02:58]}  g6 {[%clk 0:02:54]} 9. Qxc5 {[%clk 0:02:58]}  d5 {[%clk 0:02:53]} 10. e5 {[%clk 0:02:59]}  Bf5 {[%clk 0:02:39]} 11. O-O {[%clk 0:02:49]}  Qd7 {[%clk 0:02:38]} 12. c3 {[%clk 0:02:12]}  b6 {[%clk 0:02:31]} 13. Qb5 {[%clk 0:01:53]}  Nxe5 {[%clk 0:02:30]} 14. Qxd7+ {[%clk 0:01:50]}  Bxd7 {[%clk 0:02:18]} 15. cxd4 {[%clk 0:01:51]}  Nd3 {[%clk 0:02:18]} 16. Nc3 {[%clk 0:01:47]}  c6 {[%clk 0:02:17]} 17. Rb1 {[%clk 0:01:48]}  Rae8 {[%clk 0:02:12]} 18. Be3 {[%clk 0:01:45]}  Bf5 {[%clk 0:02:07]} 19. b4 {[%clk 0:01:38]}  b5 {[%clk 0:01:56]} 20. h3 {[%clk 0:01:28]}  h5 {[%clk 0:01:55]} 21. Rb3 {[%clk 0:01:14]}  a5 {[%clk 0:01:49]} 22. bxa5 {[%clk 0:00:56]}  Ra8 {[%clk 0:01:48]} 23. a4 {[%clk 0:00:55]}  b4 {[%clk 0:01:47]} 24. Na2 {[%clk 0:00:53]}  Rxa5 {[%clk 0:01:28]} 25. Nxb4 {[%clk 0:00:52]}  Rb8 {[%clk 0:01:25]} 26. Rxd3 {[%clk 0:00:51]}  Rxb4 {[%clk 0:01:24]} 27. Rc3 {[%clk 0:00:48]}  Rc4 {[%clk 0:01:21]} 28. Rb3 {[%clk 0:00:46]}  Ra7 {[%clk 0:01:17]} 29. a5 {[%clk 0:00:45]}  c5 {[%clk 0:01:02]} 30. dxc5 {[%clk 0:00:25]}  d4 {[%clk 0:01:02]} 31. Bg5 {[%clk 0:00:24]}  Rxc5 {[%clk 0:00:58]} 32. Rb4 {[%clk 0:00:21]}  Bd3 {[%clk 0:00:38]} 33. Rd1 {[%clk 0:00:21]}  Be2 {[%clk 0:00:38]} 34. Rd2 {[%clk 0:00:19]}  d3 {[%clk 0:00:34]} 35. Be3 {[%clk 0:00:17]}  Raxa5 {[%clk 0:00:28]} 36. Bxc5 {[%clk 0:00:15]}  Rxc5 {[%clk 0:00:28]} 37. f3 {[%clk 0:00:14]}  Rc2 {[%clk 0:00:26]} 38. Rxc2 {[%clk 0:00:11]}  dxc2 {[%clk 0:00:26]} 39. Rb7+ {[%clk 0:00:12]}  Ke6 {[%clk 0:00:25]} 40. Rc7 {[%clk 0:00:13]}  Bd3 {[%clk 0:00:25]} 41. Kf2 {[%clk 0:00:13]}  Kd5 {[%clk 0:00:24]} 42. Ke3 {[%clk 0:00:12]}  Bc4 {[%clk 0:00:23]} 43. Kd2 {[%clk 0:00:12]}  Bf1 {[%clk 0:00:23]} 44. g3 {[%clk 0:00:04]}  Bxh3 {[%clk 0:00:21]} 45. Rxc2 {[%clk 0:00:04]}  Bf5 {[%clk 0:00:21]} 46. Ra2 {[%clk 0:00:04]}  Ke5 {[%clk 0:00:19]} 47. Ke3 {[%clk 0:00:04]}  Kf6 {[%clk 0:00:18]} 48. Ra5 {[%clk 0:00:05]}  Kg5 {[%clk 0:00:18]} 49. Kf2 {[%clk 0:00:04]}  Kh6 {[%clk 0:00:17]} 50. Rc5 {[%clk 0:00:04]}  Kg5 {[%clk 0:00:17]} 51. Kg2 {[%clk 0:00:04]}  Kh6 {[%clk 0:00:18]} 52. f4 {[%clk 0:00:05]}  Kg7 {[%clk 0:00:15]} 53. Kf3 {[%clk 0:00:05]}  Kh6 {[%clk 0:00:15]} 54. Ke3 {[%clk 0:00:05]}  h4 {[%clk 0:00:11]} 55. gxh4 {[%clk 0:00:05]}  Kh5 {[%clk 0:00:11]} 56. Kd4 {[%clk 0:00:05]}  Kxh4 {[%clk 0:00:11]} 57. Ke5 {[%clk 0:00:06]}  Kg4 {[%clk 0:00:11]} 58. Rc6 {[%clk 0:00:06]}  Bb1 {[%clk 0:00:10]} 59. Rf6 {[%clk 0:00:06]}  Kg3 {[%clk 0:00:10]} 60. Rf8 {[%clk 0:00:06]}  Kg4 {[%clk 0:00:10]} 61. Rb8 {[%clk 0:00:06]}  Bf5 {[%clk 0:00:09]} 62. Rb2 {[%clk 0:00:07]}  Kg3 {[%clk 0:00:08]} 63. Rb3+ {[%clk 0:00:06]}  Kg4 {[%clk 0:00:08]} 64. Rb4 {[%clk 0:00:06]}  Kg3 {[%clk 0:00:07]} 65. Rb7 {[%clk 0:00:06]}  Kg4 {[%clk 0:00:07]} 66. Rg7 {[%clk 0:00:07]}  Bc2 {[%clk 0:00:06]} 67. Rf7 {[%clk 0:00:07]}  Bf5 {[%clk 0:00:06]} 68. Rf6 {[%clk 0:00:07]}  Bc2 {[%clk 0:00:06]} 69. Kd4 {[%clk 0:00:08]}  Bf5 {[%clk 0:00:05]} 70. Ke3 {[%clk 0:00:08]}  Bc2 {[%clk 0:00:05]} 71. Rd6 {[%clk 0:00:07]}  Bf5 {[%clk 0:00:05]} 72. Rd5 {[%clk 0:00:08]}  Kh5 {[%clk 0:00:05]} 73. Kf3 {[%clk 0:00:07]}  Kh6 {[%clk 0:00:05]} 74. Kg3 {[%clk 0:00:07]}  Kg7 {[%clk 0:00:04]} 75. Kh4 {[%clk 0:00:03]}  Kf6 {[%clk 0:00:04]} 76. Rd6+ {[%clk 0:00:03]}  Ke7 {[%clk 0:00:05]} 77. Rb6 {[%clk 0:00:03]}  Bd3 {[%clk 0:00:04]} 78. Kg5 {[%clk 0:00:04]}  Kf7 {[%clk 0:00:04]} 79. Rf6+ {[%clk 0:00:04]}  Kg7 {[%clk 0:00:04]} 80. Rd6 {[%clk 0:00:05]}  Bf5 {[%clk 0:00:03]} 81. Rd5 {[%clk 0:00:06]}  Be4 {[%clk 0:00:04]} 82. Rd7+ {[%clk 0:00:05]}  Kf8 {[%clk 0:00:03]} 83. Kf6 {[%clk 0:00:06]}  Bf5 {[%clk 0:00:04]} 84. Rg7 {[%clk 0:00:06]}  Ke8 {[%clk 0:00:00]} 85. Rxg6 {[%clk 0:00:06]} 1-0

[Event "January 2 Late 2024"]
[Site "https://www.chess.com"]
[Date "2024.01.02"]
[Round "5"]
[White "Seemann, Jakub"]
[Black "Ehlvest, Jaan"]
[Result "0-1"]
[Board "50"]
[TimeControl "180+1"]
[WhiteFideId "21874697"]
[BlackFideId "4500016"]
[WhiteElo "2816"]
[BlackElo "2626"]
[WhiteTeam "POL"]
[BlackTeam "USA"]
[WhiteClock "0:00:00"]
[BlackClock "0:00:33"]

1. b3 {[%clk 0:02:48]}  e5 {[%clk 0:02:57]} 2. Bb2 {[%clk 0:02:42]}  Nc6 {[%clk 0:02:56]} 3. e3 {[%clk 0:02:40]}  g6 {[%clk 0:02:55]} 4. Bb5 {[%clk 0:02:39]}  Nge7 {[%clk 0:02:55]} 5. Nf3 {[%clk 0:02:39]}  Bg7 {[%clk 0:02:54]} 6. O-O {[%clk 0:02:36]}  O-O {[%clk 0:02:54]} 7. d4 {[%clk 0:02:27]}  e4 {[%clk 0:02:34]} 8. Nfd2 {[%clk 0:02:27]}  f5 {[%clk 0:02:33]} 9. Nc3 {[%clk 0:02:16]}  d5 {[%clk 0:02:25]} 10. f3 {[%clk 0:02:09]}  Be6 {[%clk 0:02:11]} 11. fxe4 {[%clk 0:02:08]}  fxe4 {[%clk 0:02:07]} 12. Rxf8+ {[%clk 0:02:08]}  Qxf8 {[%clk 0:01:58]} 13. Qe2 {[%clk 0:02:04]}  Nf5 {[%clk 0:01:52]} 14. Bxc6 {[%clk 0:02:02]}  bxc6 {[%clk 0:01:51]} 15. Na4 {[%clk 0:01:56]}  Bh6 {[%clk 0:01:37]} 16. Nf1 {[%clk 0:01:56]}  Qf6 {[%clk 0:01:31]} 17. Nc5 {[%clk 0:01:53]}  Rf8 {[%clk 0:01:30]} 18. c3 {[%clk 0:01:45]}  Bc8 {[%clk 0:01:21]} 19. Bc1 {[%clk 0:01:37]}  Rf7 {[%clk 0:01:17]} 20. Bd2 {[%clk 0:01:37]}  Bf8 {[%clk 0:01:14]} 21. Be1 {[%clk 0:01:19]}  h5 {[%clk 0:01:10]} 22. h3 {[%clk 0:01:03]}  Bxc5 {[%clk 0:01:01]} 23. dxc5 {[%clk 0:01:03]}  d4 {[%clk 0:01:01]} 24. Ng3 {[%clk 0:00:08]}  Nxe3 {[%clk 0:00:59]} 25. Nxe4 {[%clk 0:00:02]}  Qf1+ {[%clk 0:00:58]} 26. Qxf1 {[%clk 0:00:03]}  Rxf1+ {[%clk 0:00:57]} 27. Kh2 {[%clk 0:00:03]}  Nc2 {[%clk 0:00:57]} 28. Rc1 {[%clk 0:00:04]}  Nxe1 {[%clk 0:00:55]} 29. Kg3 {[%clk 0:00:02]}  d3 {[%clk 0:00:48]} 30. Nd2 {[%clk 0:00:03]}  Rg1 {[%clk 0:00:47]} 31. Kf2 {[%clk 0:00:03]}  Rxg2+ {[%clk 0:00:46]} 32. Kxe1 {[%clk 0:00:03]}  Re2+ {[%clk 0:00:44]} 33. Kd1 {[%clk 0:00:04]}  Bxh3 {[%clk 0:00:44]} 34. c4 {[%clk 0:00:03]}  Bg4 {[%clk 0:00:43]} 35. Rc3 {[%clk 0:00:04]}  h4 {[%clk 0:00:34]} 36. Kc1 {[%clk 0:00:03]}  h3 {[%clk 0:00:33]} 37. Rxd3 {[%clk 0:00:00]}  h2 {[%clk 0:00:33]} 0-1

[Event "January 2 Late 2024"]
[Site "https://www.chess.com"]
[Date "2024.01.02"]
[Round "5"]
[White "Cabarkapa, Novak"]
[Black "Yagupov, Igor"]
[Result "0-1"]
[Board "51"]
[TimeControl "180+1"]
[WhiteFideId "943746"]
[BlackFideId "4113632"]
[WhiteElo "2815"]
[BlackElo "2623"]
[WhiteTeam "SRB"]
[BlackTeam "RUS"]
[WhiteClock "0:00:00"]
[BlackClock "0:00:07"]

1. d4 {[%clk 0:03:00]}  d5 {[%clk 0:03:00]} 2. Nc3 {[%clk 0:02:59]}  Nf6 {[%clk 0:02:59]} 3. Bf4 {[%clk 0:03:00]}  a6 {[%clk 0:02:59]} 4. e3 {[%clk 0:03:00]}  e6 {[%clk 0:02:59]} 5. g4 {[%clk 0:03:00]}  Bb4 {[%clk 0:02:54]} 6. Ne2 {[%clk 0:02:56]}  Ne4 {[%clk 0:02:49]} 7. Bg2 {[%clk 0:02:51]}  Nxc3 {[%clk 0:02:45]} 8. Nxc3 {[%clk 0:02:50]}  c5 {[%clk 0:02:42]} 9. O-O {[%clk 0:02:45]}  Nc6 {[%clk 0:02:38]} 10. Ne2 {[%clk 0:02:40]}  cxd4 {[%clk 0:02:35]} 11. exd4 {[%clk 0:02:39]}  Bd6 {[%clk 0:02:35]} 12. c3 {[%clk 0:02:33]}  h5 {[%clk 0:02:25]} 13. Bxd6 {[%clk 0:02:28]}  Qxd6 {[%clk 0:02:24]} 14. g5 {[%clk 0:02:27]}  h4 {[%clk 0:02:24]} 15. f4 {[%clk 0:02:22]}  Bd7 {[%clk 0:02:15]} 16. h3 {[%clk 0:02:20]}  O-O-O {[%clk 0:02:13]} 17. b4 {[%clk 0:02:19]}  f6 {[%clk 0:02:12]} 18. Qd2 {[%clk 0:02:13]}  fxg5 {[%clk 0:01:51]} 19. fxg5 {[%clk 0:02:14]}  e5 {[%clk 0:01:52]} 20. dxe5 {[%clk 0:02:08]}  Nxe5 {[%clk 0:01:51]} 21. Qd4 {[%clk 0:01:55]}  Bb5 {[%clk 0:01:49]} 22. Rae1 {[%clk 0:01:47]}  Nd3 {[%clk 0:01:35]} 23. Rd1 {[%clk 0:01:35]}  Nxb4 {[%clk 0:01:32]} 24. cxb4 {[%clk 0:01:27]}  Bxe2 {[%clk 0:01:30]} 25. Rc1+ {[%clk 0:01:18]}  Kb8 {[%clk 0:01:30]} 26. Rf7 {[%clk 0:01:13]}  Bb5 {[%clk 0:01:00]} 27. Rc5 {[%clk 0:00:55]}  Bc6 {[%clk 0:00:59]} 28. Qxg7 {[%clk 0:00:55]}  Rhg8 {[%clk 0:00:51]} 29. Qd4 {[%clk 0:00:46]}  Rxg5 {[%clk 0:00:48]} 30. Rc2 {[%clk 0:00:42]}  Rdg8 {[%clk 0:00:40]} 31. Rf6 {[%clk 0:00:37]}  Qd7 {[%clk 0:00:26]} 32. Qf4+ {[%clk 0:00:25]}  Ka8 {[%clk 0:00:21]} 33. Rf8+ {[%clk 0:00:25]}  Rxf8 {[%clk 0:00:19]} 34. Qxf8+ {[%clk 0:00:26]}  Ka7 {[%clk 0:00:19]} 35. Qf2+ {[%clk 0:00:26]}  Ka8 {[%clk 0:00:19]} 36. Qxh4 {[%clk 0:00:25]}  Qg7 {[%clk 0:00:17]} 37. Kh1 {[%clk 0:00:03]}  Qa1+ {[%clk 0:00:09]} 38. Kh2 {[%clk 0:00:03]}  Qe5+ {[%clk 0:00:09]} 39. Kh1 {[%clk 0:00:03]}  Qa1+ {[%clk 0:00:09]} 40. Kh2 {[%clk 0:00:04]}  Qe5+ {[%clk 0:00:09]} 41. Kh1 {[%clk 0:00:04]}  d4 {[%clk 0:00:08]} 42. Rc1 {[%clk 0:00:00]}  Bxg2+ {[%clk 0:00:07]} 0-1

[Event "January 2 Late 2024"]
[Site "https://www.chess.com"]
[Date "2024.01.02"]
[Round "5"]
[White "Coca Cubillos, Jesus Alberto"]
[Black "Pakleza, Zbigniew"]
[Result "0-1"]
[Board "52"]
[TimeControl "180+1"]
[WhiteFideId "4462912"]
[BlackFideId "1119290"]
[WhiteElo "2621"]
[BlackElo "2810"]
[WhiteTeam "COL"]
[BlackTeam "POL"]
[WhiteClock "0:00:06"]
[BlackClock "0:01:08"]

1. f4 {[%clk 0:00:51]}  d5 {[%clk 0:02:59]} 2. Nf3 {[%clk 0:00:52]}  Nf6 {[%clk 0:03:00]} 3. e3 {[%clk 0:00:52]}  Bf5 {[%clk 0:02:59]} 4. d4 {[%clk 0:00:53]}  e6 {[%clk 0:02:59]} 5. c3 {[%clk 0:00:54]}  c5 {[%clk 0:02:58]} 6. Bd3 {[%clk 0:00:54]}  Nc6 {[%clk 0:02:57]} 7. O-O {[%clk 0:00:54]}  Bg6 {[%clk 0:02:55]} 8. Qe2 {[%clk 0:00:54]}  Be7 {[%clk 0:02:54]} 9. Nbd2 {[%clk 0:00:54]}  O-O {[%clk 0:02:53]} 10. Ne5 {[%clk 0:00:54]}  Bxd3 {[%clk 0:02:53]} 11. Qxd3 {[%clk 0:00:54]}  Rc8 {[%clk 0:02:48]} 12. Rf3 {[%clk 0:00:54]}  g6 {[%clk 0:02:44]} 13. h3 {[%clk 0:00:51]}  a6 {[%clk 0:02:40]} 14. g4 {[%clk 0:00:52]}  b5 {[%clk 0:02:40]} 15. Kg2 {[%clk 0:00:51]}  Ne8 {[%clk 0:02:33]} 16. Rf2 {[%clk 0:00:49]}  Nd6 {[%clk 0:02:31]} 17. g5 {[%clk 0:00:46]}  cxd4 {[%clk 0:02:16]} 18. exd4 {[%clk 0:00:44]}  Nf5 {[%clk 0:02:13]} 19. Ndf3 {[%clk 0:00:41]}  Qc7 {[%clk 0:02:02]} 20. a3 {[%clk 0:00:41]}  Na5 {[%clk 0:01:56]} 21. h4 {[%clk 0:00:39]}  Bd6 {[%clk 0:01:52]} 22. h5 {[%clk 0:00:31]}  Nc4 {[%clk 0:01:51]} 23. Kh3 {[%clk 0:00:24]}  Kg7 {[%clk 0:01:44]} 24. Rh2 {[%clk 0:00:25]}  Rh8 {[%clk 0:01:44]} 25. Kg4 {[%clk 0:00:25]}  h6 {[%clk 0:01:34]} 26. b3 {[%clk 0:00:22]}  Nb6 {[%clk 0:01:24]} 27. Nh4 {[%clk 0:00:20]}  Qxc3 {[%clk 0:01:10]} 28. Qxc3 {[%clk 0:00:19]}  Rxc3 {[%clk 0:01:11]} 29. hxg6 {[%clk 0:00:06]}  Rg3+ {[%clk 0:01:08]} 0-1

[Event "January 2 Late 2024"]
[Site "https://www.chess.com"]
[Date "2024.01.02"]
[Round "5"]
[White "Panchenko, Dmitry"]
[Black "Matta, Nicholas"]
[Result "1-0"]
[Board "53"]
[TimeControl "180+1"]
[WhiteFideId "4169158"]
[BlackFideId "30914523"]
[WhiteElo "2810"]
[BlackElo "2565"]
[WhiteTeam "RUS"]
[BlackTeam "USA"]
[WhiteClock "0:01:19"]
[BlackClock "0:00:03"]

1. e4 {[%clk 0:02:56]}  c5 {[%clk 0:02:59]} 2. Nf3 {[%clk 0:02:55]}  Nf6 {[%clk 0:03:00]} 3. Nc3 {[%clk 0:02:49]}  d5 {[%clk 0:03:00]} 4. exd5 {[%clk 0:02:49]}  Nxd5 {[%clk 0:03:01]} 5. Bb5+ {[%clk 0:02:49]}  Bd7 {[%clk 0:03:02]} 6. Ne5 {[%clk 0:02:49]}  Bxb5 {[%clk 0:03:02]} 7. Qf3 {[%clk 0:02:48]}  f6 {[%clk 0:03:02]} 8. Nxb5 {[%clk 0:02:42]}  Na6 {[%clk 0:03:02]} 9. c4 {[%clk 0:02:38]}  Ndb4 {[%clk 0:02:51]} 10. Qh5+ {[%clk 0:02:31]}  g6 {[%clk 0:02:51]} 11. Nxg6 {[%clk 0:02:30]}  hxg6 {[%clk 0:02:52]} 12. Qxh8 {[%clk 0:02:30]}  Nc2+ {[%clk 0:02:43]} 13. Ke2 {[%clk 0:02:27]}  Nxa1 {[%clk 0:02:39]} 14. d4 {[%clk 0:02:24]}  Nc2 {[%clk 0:02:34]} 15. Bh6 {[%clk 0:02:23]}  Kd7 {[%clk 0:02:26]} 16. dxc5 {[%clk 0:02:22]}  Kc6 {[%clk 0:02:07]} 17. Rd1 {[%clk 0:02:15]}  Qc8 {[%clk 0:02:07]} 18. Kf1 {[%clk 0:02:12]}  Qg4 {[%clk 0:02:03]} 19. Nc3 {[%clk 0:02:09]}  Qxc4+ {[%clk 0:01:02]} 20. Kg1 {[%clk 0:02:07]}  Bxh6 {[%clk 0:00:54]} 21. Qxa8 {[%clk 0:02:06]}  Nc7 {[%clk 0:00:37]} 22. Qd8 {[%clk 0:02:02]}  Qe6 {[%clk 0:00:30]} 23. a4 {[%clk 0:01:52]}  a6 {[%clk 0:00:26]} 24. Qh8 {[%clk 0:01:49]}  Bd2 {[%clk 0:00:20]} 25. Qd8 {[%clk 0:01:41]}  Bxc3 {[%clk 0:00:19]} 26. bxc3 {[%clk 0:01:41]}  Na3 {[%clk 0:00:13]} 27. Qd4 {[%clk 0:01:38]}  Nc4 {[%clk 0:00:13]} 28. h3 {[%clk 0:01:36]}  Ne5 {[%clk 0:00:08]} 29. Rb1 {[%clk 0:01:35]}  Nd5 {[%clk 0:00:05]} 30. c4 {[%clk 0:01:34]}  Nc3 {[%clk 0:00:01]} 31. Qxc3 {[%clk 0:01:34]}  Qxc4 {[%clk 0:00:01]} 32. Qb2 {[%clk 0:01:30]}  Kxc5 {[%clk 0:00:01]} 33. Rc1 {[%clk 0:01:29]}  Qxc1+ {[%clk 0:00:01]} 34. Qxc1+ {[%clk 0:01:30]}  Kb4 {[%clk 0:00:01]} 35. Qc7 {[%clk 0:01:27]}  Kxa4 {[%clk 0:00:01]} 36. Qxb7 {[%clk 0:01:27]}  a5 {[%clk 0:00:01]} 37. Qxe7 {[%clk 0:01:26]}  Kb3 {[%clk 0:00:02]} 38. Qxf6 {[%clk 0:01:26]}  Nc4 {[%clk 0:00:02]} 39. Qxg6 {[%clk 0:01:25]}  a4 {[%clk 0:00:03]} 40. Qd3+ {[%clk 0:01:25]}  Kb4 {[%clk 0:00:03]} 41. Qb1+ {[%clk 0:01:19]}  Kc5 {[%clk 0:00:03]} 1-0

[Event "January 2 Late 2024"]
[Site "https://www.chess.com"]
[Date "2024.01.02"]
[Round "5"]
[White "Goltsev, Dmitry"]
[Black "Ferreira, Vitor Hugo Vieira"]
[Result "0-1"]
[Board "56"]
[TimeControl "180+1"]
[WhiteFideId "24176710"]
[BlackFideId "2119765"]
[WhiteElo "2778"]
[BlackElo "2533"]
[WhiteTeam "RUS"]
[BlackTeam "BRA"]
[WhiteClock "0:00:15"]
[BlackClock "0:00:35"]

1. e4 {[%clk 0:02:58]}  c5 {[%clk 0:02:59]} 2. Nf3 {[%clk 0:02:58]}  d6 {[%clk 0:03:00]} 3. d4 {[%clk 0:02:59]}  cxd4 {[%clk 0:03:01]} 4. Nxd4 {[%clk 0:03:00]}  Nf6 {[%clk 0:03:01]} 5. Nc3 {[%clk 0:03:00]}  a6 {[%clk 0:03:02]} 6. Be2 {[%clk 0:03:00]}  e5 {[%clk 0:03:01]} 7. Nf5 {[%clk 0:02:59]}  d5 {[%clk 0:02:45]} 8. Bg5 {[%clk 0:02:57]}  d4 {[%clk 0:02:41]} 9. Bxf6 {[%clk 0:02:52]}  gxf6 {[%clk 0:02:38]} 10. Nb1 {[%clk 0:02:52]}  Qb6 {[%clk 0:02:33]} 11. Nd2 {[%clk 0:02:46]}  Be6 {[%clk 0:02:30]} 12. O-O {[%clk 0:02:43]}  Nc6 {[%clk 0:02:27]} 13. Nc4 {[%clk 0:02:39]}  Qc7 {[%clk 0:02:23]} 14. a4 {[%clk 0:02:35]}  O-O-O {[%clk 0:02:21]} 15. a5 {[%clk 0:02:33]}  Bc5 {[%clk 0:02:11]} 16. Qd2 {[%clk 0:02:27]}  d3 {[%clk 0:02:11]} 17. Nb6+ {[%clk 0:02:23]}  Bxb6 {[%clk 0:02:06]} 18. axb6 {[%clk 0:02:24]}  dxe2 {[%clk 0:02:03]} 19. Qxe2 {[%clk 0:02:12]}  Qxb6 {[%clk 0:02:00]} 20. Ne3 {[%clk 0:02:07]}  Nd4 {[%clk 0:01:58]} 21. Qh5 {[%clk 0:02:03]}  Rhg8 {[%clk 0:01:45]} 22. c3 {[%clk 0:02:00]}  Nb3 {[%clk 0:01:40]} 23. Rad1 {[%clk 0:01:59]}  Nd2 {[%clk 0:01:38]} 24. Rfe1 {[%clk 0:01:56]}  Nxe4 {[%clk 0:01:33]} 25. Qxh7 {[%clk 0:01:57]}  Ng5 {[%clk 0:01:30]} 26. Qh6 {[%clk 0:01:48]}  Nf3+ {[%clk 0:01:28]} 27. Kh1 {[%clk 0:01:47]}  Rh8 {[%clk 0:01:14]} 28. Qxh8 {[%clk 0:01:41]}  Rxh8 {[%clk 0:01:13]} 29. gxf3 {[%clk 0:01:42]}  Qxb2 {[%clk 0:01:09]} 30. Kg2 {[%clk 0:01:39]}  Bh3+ {[%clk 0:01:01]} 31. Kg3 {[%clk 0:00:36]}  Rg8+ {[%clk 0:00:50]} 32. Ng4 {[%clk 0:00:18]}  Bxg4 {[%clk 0:00:47]} 33. fxg4 {[%clk 0:00:18]}  f5 {[%clk 0:00:37]} 34. f3 {[%clk 0:00:15]}  f4+ {[%clk 0:00:35]} 35. Kh3 {[%clk 0:00:15]}  Rh8# {[%clk 0:00:35]} 0-1

[Event "January 2 Late 2024"]
[Site "https://www.chess.com"]
[Date "2024.01.02"]
[Round "5"]
[White "Timmermans, Mark"]
[Black "Estrada Nieto, Julian"]
[Result "1-0"]
[Board "57"]
[TimeControl "180+1"]
[WhiteFideId "1026399"]
[BlackFideId "5101018"]
[WhiteElo "2773"]
[BlackElo "2530"]
[WhiteTeam "NED"]
[BlackTeam "ESP"]
[WhiteClock "0:00:23"]
[BlackClock "0:00:08"]

1. b4 {[%clk 0:03:00]}  e5 {[%clk 0:02:58]} 2. Bb2 {[%clk 0:03:00]}  Bxb4 {[%clk 0:02:58]} 3. Bxe5 {[%clk 0:02:55]}  Nf6 {[%clk 0:02:58]} 4. Nc3 {[%clk 0:02:54]}  Nc6 {[%clk 0:02:58]} 5. Bxf6 {[%clk 0:02:54]}  Qxf6 {[%clk 0:02:56]} 6. Nd5 {[%clk 0:02:55]}  Qd8 {[%clk 0:02:56]} 7. Nf3 {[%clk 0:02:50]}  O-O {[%clk 0:02:50]} 8. e3 {[%clk 0:02:47]}  Re8 {[%clk 0:02:42]} 9. Be2 {[%clk 0:02:47]}  Bf8 {[%clk 0:02:40]} 10. O-O {[%clk 0:02:46]}  d6 {[%clk 0:02:40]} 11. d4 {[%clk 0:02:42]}  Ne7 {[%clk 0:02:38]} 12. Nf4 {[%clk 0:02:42]}  Ng6 {[%clk 0:02:37]} 13. Nxg6 {[%clk 0:02:41]}  hxg6 {[%clk 0:02:37]} 14. c4 {[%clk 0:02:42]}  d5 {[%clk 0:02:23]} 15. Qb3 {[%clk 0:02:35]}  Be6 {[%clk 0:02:14]} 16. Qxb7 {[%clk 0:02:29]}  dxc4 {[%clk 0:02:09]} 17. Rac1 {[%clk 0:02:20]}  Bd5 {[%clk 0:02:01]} 18. Qa6 {[%clk 0:02:19]}  Rb8 {[%clk 0:01:48]} 19. Ne1 {[%clk 0:02:01]}  Rb6 {[%clk 0:01:21]} 20. Qxa7 {[%clk 0:02:01]}  Bd6 {[%clk 0:00:45]} 21. Bxc4 {[%clk 0:01:57]}  Rc6 {[%clk 0:00:45]} 22. Qa4 {[%clk 0:01:47]}  Qh4 {[%clk 0:00:33]} 23. g3 {[%clk 0:01:47]}  Qe7 {[%clk 0:00:21]} 24. Ng2 {[%clk 0:01:32]}  Rxc4 {[%clk 0:00:15]} 25. Rxc4 {[%clk 0:01:33]}  Rb8 {[%clk 0:00:12]} 26. f3 {[%clk 0:01:19]}  Rb2 {[%clk 0:00:09]} 27. Rc2 {[%clk 0:01:19]}  Rxc2 {[%clk 0:00:05]} 28. Qxc2 {[%clk 0:01:20]}  Bb7 {[%clk 0:00:04]} 29. a4 {[%clk 0:01:19]}  Qe6 {[%clk 0:00:04]} 30. e4 {[%clk 0:01:15]}  c5 {[%clk 0:00:04]} 31. d5 {[%clk 0:01:15]}  Qe7 {[%clk 0:00:03]} 32. Rb1 {[%clk 0:01:13]}  Be5 {[%clk 0:00:02]} 33. Kh1 {[%clk 0:01:04]}  Bd4 {[%clk 0:00:03]} 34. Nf4 {[%clk 0:01:04]}  Ba6 {[%clk 0:00:03]} 35. Rb6 {[%clk 0:00:58]}  Bc8 {[%clk 0:00:02]} 36. Rb8 {[%clk 0:00:56]}  Qc7 {[%clk 0:00:03]} 37. Qb1 {[%clk 0:00:50]}  Be5 {[%clk 0:00:02]} 38. Nd3 {[%clk 0:00:49]}  Qxb8 {[%clk 0:00:02]} 39. Qxb8 {[%clk 0:00:47]}  Bxb8 {[%clk 0:00:02]} 40. Nxc5 {[%clk 0:00:48]}  Kf8 {[%clk 0:00:02]} 41. f4 {[%clk 0:00:47]}  Ke8 {[%clk 0:00:02]} 42. e5 {[%clk 0:00:47]}  Bc7 {[%clk 0:00:02]} 43. Kg2 {[%clk 0:00:25]}  Bb6 {[%clk 0:00:02]} 44. Ne4 {[%clk 0:00:25]}  Bb7 {[%clk 0:00:02]} 45. Nd6+ {[%clk 0:00:26]}  Kd7 {[%clk 0:00:01]} 46. Nxb7 {[%clk 0:00:27]}  Kc7 {[%clk 0:00:01]} 47. Nd6 {[%clk 0:00:27]}  f6 {[%clk 0:00:01]} 48. Ne8+ {[%clk 0:00:27]}  Kd7 {[%clk 0:00:01]} 49. Nxg7 {[%clk 0:00:28]}  fxe5 {[%clk 0:00:01]} 50. fxe5 {[%clk 0:00:29]}  Bd4 {[%clk 0:00:02]} 51. e6+ {[%clk 0:00:12]}  Ke7 {[%clk 0:00:02]} 52. a5 {[%clk 0:00:13]}  Bxg7 {[%clk 0:00:02]} 53. a6 {[%clk 0:00:14]}  Bd4 {[%clk 0:00:02]} 54. Kf3 {[%clk 0:00:15]}  Kd6 {[%clk 0:00:02]} 55. Kg4 {[%clk 0:00:15]}  Bb6 {[%clk 0:00:02]} 56. Kg5 {[%clk 0:00:15]}  Bc5 {[%clk 0:00:02]} 57. Kxg6 {[%clk 0:00:16]}  Kxd5 {[%clk 0:00:03]} 58. Kf7 {[%clk 0:00:16]}  Kc6 {[%clk 0:00:03]} 59. e7 {[%clk 0:00:16]}  Bxe7 {[%clk 0:00:04]} 60. Kxe7 {[%clk 0:00:16]}  Kb6 {[%clk 0:00:04]} 61. g4 {[%clk 0:00:17]}  Kxa6 {[%clk 0:00:05]} 62. g5 {[%clk 0:00:18]}  Kb5 {[%clk 0:00:05]} 63. g6 {[%clk 0:00:19]}  Kc4 {[%clk 0:00:06]} 64. g7 {[%clk 0:00:19]}  Kd3 {[%clk 0:00:07]} 65. g8=Q {[%clk 0:00:20]}  Ke2 {[%clk 0:00:08]} 66. Qg2+ {[%clk 0:00:20]}  Ke3 {[%clk 0:00:08]} 67. Qg3+ {[%clk 0:00:19]}  Ke4 {[%clk 0:00:08]} 68. Ke6 {[%clk 0:00:20]}  Kd4 {[%clk 0:00:08]} 69. Qf4+ {[%clk 0:00:20]}  Kd3 {[%clk 0:00:08]} 70. h4 {[%clk 0:00:20]}  Kc3 {[%clk 0:00:09]} 71. Qe4 {[%clk 0:00:20]}  Kb3 {[%clk 0:00:09]} 72. Qd4 {[%clk 0:00:21]}  Ka2 {[%clk 0:00:09]} 73. Qb4 {[%clk 0:00:21]}  Ka1 {[%clk 0:00:10]} 74. Kd5 {[%clk 0:00:21]}  Ka2 {[%clk 0:00:10]} 75. Kc4 {[%clk 0:00:22]}  Ka1 {[%clk 0:00:08]} 76. Kc3 {[%clk 0:00:23]} 1-0